[Event "51st La Roda Open 2025"]
[Site "La Roda"]
[Date "2025.04.19"]
[Round "8.16"]
[White "Suarez Alvarez, Miguel"]
[Black "Gomez Falagan, Daniel"]
[Result "0-1"]
[Annotator "RC"]
[ECO "E05"]
[WhiteElo "2036"]
[BlackElo "2254"]
[PlyCount "172"]
[EventDate "2025.04.15"]
[EventType "swiss"]
[EventCountry "ESP"]
[SourceTitle "playchess.com"]
[Source "ChessBase"]
[SourceQuality "1"]
[TimeControl "5400+30"]

1. Nf3 {[%emt 0:00:04]} d5 {[%emt 0:00:05]} 2. d4 {[%emt 0:00:06]} Nf6 {[%emt 0:00:07]} 3. g3 {[%emt 0:00:04]} e6 {[%emt 0:00:37]} 4. Bg2 {[%emt 0:00:06]} Be7 {[%emt 0:00:07]} 5. O-O {[%emt 0:00:06]} O-O {[%emt 0:00:07]} 6. c4 {[%emt 0:00:04]} dxc4 {[%emt 0:00:06]} 7. Qa4 {[%emt 0:00:16]} Qd5 {[%emt 0:00:17]} 8. Nc3 {[%emt 0:05:22]} Qc6 {[%emt 0:00:16]} 9. Qc2 {[%emt 0:05:08]} Qa6 {[%emt 0:00:25]} 10. e4 {[%emt 0:08:24]} Nc6 {[%emt 0:00:29]} 11. a3 {[%emt 0:04:04]} h6 {[%emt 0:00:35]} 12. Bf4 {[%emt 0:05:40]} Na5 {[%emt 0:03:31]} 13. Bxc7 {[%emt 0:03:33]} b5 {[%emt 0:13:23]} 14. d5 {[%emt 0:07:50]} Nb3 {[%emt 0:15:47]} 15. Rad1 {[%emt 0:00:16]} Bb7 {[%emt 0:02:29]} 16. Bf4 {[%emt 0:15:44]} Bc5 {[%emt 0:20:36]} 17. d6 {[%emt 0:04:13]} b4 {[%emt 0:05:25]} 18. e5 {[%emt 0:04:26]} Nd7 {[%emt 0:02:23]} 19. axb4 {[%emt 0:00:33]} Bxb4 {[%emt 0:00:06]} 20. Ne4 {[%emt 0:00:53]} Nbc5 {[%emt 0:01:40]} 21. Nxc5 {[%emt 0:02:53]} Nxc5 {[%emt 0:00:07]} 22. Ra1 {[%emt 0:01:51]} Qb6 {[%emt 0:03:26]} 23. Be3 {[%emt 0:02:27]} Bd5 {[%emt 0:03:23]} 24. Rfd1 {[%emt 0:15:25]} Qb7 {[%emt 0:03:41]} 25. Nh4 {[%emt 0:00:58]} Bxg2 {[%emt 0:04:45]} 26. Nxg2 {[%emt 0:00:08]} Nd3 {[%emt 0:01:10]} 27. Bf4 {[%emt 0:07:56]} Bc5 {[%emt 0:01:05]} 28. Rxd3 {[%emt 0:00:33]} cxd3 {[%emt 0:00:43]} 29. Qxc5 {[%emt 0:00:08]} Qxb2 {[%emt 0:00:15]} 30. Rd1 {[%emt 0:02:01]} Qb3 {[%emt 0:01:37]} 31. Qc1 {[%emt 0:00:31]} a5 {[%emt 0:00:50]} 32. Ne1 {[%emt 0:00:43]} a4 {[%emt 0:03:09]} 33. Rxd3 {[%emt 0:00:12]} Qb4 {[%emt 0:00:08]} 34. Qd2 {[%emt 0:00:58]} Qe4 {[%emt 0:03:29]} 35. Rd4 {[%emt 0:00:34]} Qb1 {[%emt 0:00:24]} 36. Qd1 {[%emt 0:00:30]} Qb5 {[%emt 0:01:50]} 37. Qd3 {[%emt 0:01:52]} Qa5 {[%emt 0:01:05]} 38. Qd2 {[%emt 0:00:10]} Qb5 {[%emt 0:00:03]} 39. Bxh6 {[%emt 0:01:14]} Qxe5 {[%emt 0:01:15]} 40. Rg4 {[%emt 0:02:34]} Qh5 {[%emt 0:01:49]} 41. Rh4 {[%emt 0:00:00]} Qd5 {[%emt 0:01:57]} 42. Rd4 {[%emt 0:00:00]} Qf5 {[%emt 0:00:47]} 43. Be3 {[%emt 0:00:17]} a3 {[%emt 0:00:12]} 44. Qa2 {[%emt 0:00:30]} Qb5 {[%emt 0:00:45]} 45. Rd2 {[%emt 0:00:38]} Rfc8 {[%emt 0:00:17]} 46. Nd3 {[%emt 0:00:57]} Rc3 {[%emt 0:00:30]} 47. Ne1 {[%emt 0:00:30]} Rc1 {[%emt 0:00:35]} 48. Re2 {[%emt 0:00:09]} Rd1 {[%emt 0:00:05]} 49. Bf4 {[%emt 0:00:19]} Qb1 {[%emt 0:01:40]} 50. Qxb1 {[%emt 0:00:33]} Rxb1 {[%emt 0:00:04]} 51. Kg2 {[%emt 0:01:01]} a2 {[%emt 0:01:01]} 52. Nc2 {[%emt 0:00:27]} Rb2 {[%emt 0:00:58]} 53. d7 {[%emt 0:00:01]} a1=Q {[%emt 0:01:15]} 54. Nxa1 {[%emt 0:00:06]} Rxe2 {[%emt 0:00:05]} 55. Nb3 {[%emt 0:01:15]} Rd8 {[%emt 0:00:41]} 56. Nc5 {[%emt 0:00:12]} Rc2 {[%emt 0:00:09]} 57. Bc7 {[%emt 0:00:16]} Rxc5 {[%emt 0:00:22]} 58. Bxd8 {[%emt 0:00:05]} Rd5 {[%emt 0:00:04]} 59. Bb6 {[%emt 0:00:21]} Rxd7 {[%emt 0:00:05]} 60. Bc5 {[%emt 0:00:12]} Kh7 {[%emt 0:00:11]} 61. Kf3 {[%emt 0:00:15]} Rd5 {[%emt 0:01:29]} 62. Bb6 {[%emt 0:00:20]} Rb5 {[%emt 0:01:06]} 63. Bc7 {[%emt 0:00:13]} g5 {[%emt 0:01:22]} 64. Bd8 {[%emt 0:00:49]} Rf5+ {[%emt 0:00:39]} 65. Kg2 {[%emt 0:00:20]} g4 {[%emt 0:00:08]} 66. Bb6 {[%emt 0:00:10]} Rh5 {[%emt 0:00:09]} 67. Bd8 {[%emt 0:00:55]} Kg7 {[%emt 0:00:30]} 68. Bh4 {[%emt 0:00:40]} Rf5 {[%emt 0:01:26]} 69. Bd8 {[%emt 0:00:09]} Kf8 {[%emt 0:00:13]} 70. Bc7 {[%emt 0:00:18]} Ke7 {[%emt 0:00:16]} 71. Bf4 {[%emt 0:00:15]} Rh5 {[%emt 0:00:05]} 72. Bc7 {[%emt 0:00:58]} Kf6 {[%emt 0:00:26]} 73. Bd6 {[%emt 0:00:08]} Kf5 {[%emt 0:00:21]} 74. Be7 {[%emt 0:01:21]} Ke4 {[%emt 0:00:12]} 75. Bf6 {[%emt 0:00:30]} Rf5 {[%emt 0:00:44]} 76. Bd8 {[%emt 0:00:23]} Kd3 {[%emt 0:01:58]} 77. Kf1 {[%emt 0:00:39]} Rh5 {[%emt 0:00:44]} 78. Bh4 {[%emt 0:00:34]} f5 {[%emt 0:00:25]} 79. Kg2 {[%emt 0:00:20]} Ke4 {[%emt 0:00:04]} 80. Bd8 {[%emt 0:01:10]} e5 {[%emt 0:00:14]} 81. Bh4 {[%emt 0:00:48]} f4 {[%emt 0:01:20]} 82. h3 {[%emt 0:00:03]} gxh3+ {[%emt 0:00:18]} 83. Kh2 {[%emt 0:01:05]} fxg3+ {[%emt 0:00:55]} 84. Bxg3 {[%emt 0:00:23]} Kf3 {[%emt 0:00:08]} 85. Kh1 {[%emt 0:00:36]} e4 {[%emt 0:00:20]} 86. Kh2 {[%emt 0:00:24]} Rh7 {[%emt 0:00:05]} 0-1

[Event "51st La Roda Open 2025"]
[Site "La Roda"]
[Date "2025.04.19"]
[Round "8.17"]
[White "Rumbos Garcia, Alejandro Daniel"]
[Black "Talavera Garcia, Santiago"]
[Result "0-1"]
[Annotator "ChessBase"]
[ECO "B07"]
[WhiteElo "2178"]
[BlackElo "2024"]
[PlyCount "102"]
[EventDate "2025.04.15"]
[EventType "swiss"]
[EventCountry "ESP"]
[SourceTitle "playchess.com"]
[Source "ChessBase"]
[SourceQuality "1"]
[TimeControl "5400+30"]

1. c4 {[%emt 0:02:01]} e5 {[%emt 0:00:22]} 2. Nc3 {[%emt 0:00:06]} Nf6 {[%emt 0:00:11]} 3. Nf3 {[%emt 0:00:16]} d6 {[%emt 0:01:02]} 4. e4 {[%emt 0:00:48]} g6 {[%emt 0:00:44]} 5. d4 {[%emt 0:00:43]} exd4 {[%emt 0:02:17]} 6. Nxd4 {[%emt 0:00:09]} Bg7 {[%emt 0:00:47]} 7. Be2 {[%emt 0:00:20]} Nc6 {[%emt 0:03:03]} 8. Be3 {[%emt 0:02:33]} O-O {[%emt 0:02:51]} 9. f3 {[%emt 0:00:39]} a5 {[%emt 0:03:33]} 10. Qd2 {[%emt 0:00:34]} a4 {[%emt 0:02:19]} 11. O-O-O {[%emt 0:02:03]} Re8 {[%emt 0:12:22]} 12. Ndb5 {[%emt 0:02:51]} Be6 {[%emt 0:16:27]} 13. Bg5 {[%emt 0:11:16]} Nb4 {[%emt 0:10:25]} 14. Kb1 {[%emt 0:04:33]} a3 {[%emt 0:11:37]} 15. b3 {[%emt 0:01:21]} Qe7 {[%emt 0:07:09]} 16. g4 {[%emt 0:03:12]} Rec8 {[%emt 0:06:22]} 17. Qf4 {[%emt 0:04:24]} Bd7 {[%emt 0:01:38]} 18. Nd4 {[%emt 0:01:14]} Ra5 {[%emt 0:04:26]} 19. h4 {[%emt 0:07:03]} c6 {[%emt 0:05:41]} 20. Rhe1 {[%emt 0:04:07]} Re5 {[%emt 0:00:29]} 21. Qd2 {[%emt 0:00:26]} d5 {[%emt 0:01:38]} 22. exd5 {[%emt 0:05:20]} cxd5 {[%emt 0:01:10]} 23. f4 {[%emt 0:00:10]} Rxg5 {[%emt 0:01:41]} 24. hxg5 {[%emt 0:00:12]} Ne4 {[%emt 0:00:16]} 25. Qe3 {[%emt 0:01:46]} Nxc3+ {[%emt 0:01:04]} 26. Qxc3 {[%emt 0:00:07]} Qe4+ {[%emt 0:00:39]} 27. Bd3 {[%emt 0:00:58]} Qxd4 {[%emt 0:00:32]} 28. Qxd4 {[%emt 0:00:22]} Bxd4 {[%emt 0:00:06]} 29. f5 {[%emt 0:04:22]} Bc3 {[%emt 0:01:52]} 30. Re7 {[%emt 0:00:17]} Bc6 {[%emt 0:00:07]} 31. c5 {[%emt 0:11:13]} Nxd3 {[%emt 0:00:28]} 32. Rxd3 {[%emt 0:00:07]} d4 {[%emt 0:00:04]} 33. Kc1 {[%emt 0:03:01]} Re8 {[%emt 0:01:31]} 34. Rxe8+ {[%emt 0:02:38]} Bxe8 {[%emt 0:00:02]} 35. Kd1 {[%emt 0:01:46]} Bc6 {[%emt 0:00:46]} 36. Rg3 {[%emt 0:01:03]} gxf5 {[%emt 0:00:19]} 37. gxf5 {[%emt 0:00:01]} Be4 {[%emt 0:00:08]} 38. f6 {[%emt 0:00:28]} Kf8 {[%emt 0:00:17]} 39. Rh3 {[%emt 0:01:24]} Ke8 {[%emt 0:00:34]} 40. Rh4 {[%emt 0:00:17]} Bb1 {[%emt 0:00:26]} 41. Kc1 {[%emt 0:00:46]} Bg6 {[%emt 0:00:11]} 42. b4 {[%emt 0:00:29]} Kd7 {[%emt 0:00:41]} 43. b5 {[%emt 0:00:04]} Ke6 {[%emt 0:00:41]} 44. c6 {[%emt 0:02:30]} bxc6 {[%emt 0:00:11]} 45. bxc6 {[%emt 0:00:02]} Kd6 {[%emt 0:00:10]} 46. Rh2 {[%emt 0:00:28]} Kxc6 {[%emt 0:00:30]} 47. Kd1 {[%emt 0:00:09]} Kd5 {[%emt 0:00:26]} 48. Ke2 {[%emt 0:00:06]} Bb2 {[%emt 0:00:44]} 49. Rh1 {[%emt 0:01:22]} Ke5 {[%emt 0:00:16]} 50. Rf1 {[%emt 0:00:09]} Bc3 {[%emt 0:00:23]} 51. Rg1 {[%emt 0:00:21]} Bc2 {[%emt 0:00:07]} 0-1

[Event "51st La Roda Open 2025"]
[Site "La Roda"]
[Date "2025.04.19"]
[Round "8.18"]
[White "Portero Rubio, Martin"]
[Black "Ruiz Torrente, Pablo"]
[Result "1-0"]
[Annotator "NA"]
[ECO "C54"]
[WhiteElo "2125"]
[BlackElo "1895"]
[PlyCount "71"]
[EventDate "2025.04.15"]
[EventType "swiss"]
[EventCountry "ESP"]
[SourceTitle "playchess.com"]
[Source "ChessBase"]
[SourceQuality "1"]
[TimeControl "5400+30"]

1. e4 {[%emt 0:00:20]} e5 {[%emt 0:00:04]} 2. Nf3 {[%emt 0:00:20]} Nc6 {[%emt 0:00:05]} 3. Bc4 {[%emt 0:00:39]} Nf6 {[%emt 0:01:05]} 4. d3 {[%emt 0:00:34]} Bc5 {[%emt 0:00:10]} 5. c3 {[%emt 0:01:01]} a6 {[%emt 0:00:17]} 6. a4 {[%emt 0:00:25]} O-O {[%emt 0:00:41]} 7. O-O {[%emt 0:01:04]} d6 {[%emt 0:00:13]} 8. h3 {[%emt 0:00:51]} Ba7 {[%emt 0:02:16]} 9. Re1 {[%emt 0:01:41]} Ne7 {[%emt 0:00:30]} 10. d4 {[%emt 0:04:19]} Ng6 {[%emt 0:01:33]} 11. Bf1 {[%emt 0:10:58]} Re8 {[%emt 0:02:46]} 12. Nbd2 {[%emt 0:07:30]} Be6 {[%emt 0:13:07]} 13. Qc2 {[%emt 0:03:30]} c6 {[%emt 0:10:53]} 14. b3 {[%emt 0:03:24]} exd4 {[%emt 0:08:40]} 15. cxd4 {[%emt 0:01:01]} d5 {[%emt 0:00:13]} 16. e5 {[%emt 0:02:28]} Ne4 {[%emt 0:00:12]} 17. Bd3 {[%emt 0:15:27]} Nh4 {[%emt 0:16:59]} 18. Bb2 {[%emt 0:19:33]} Nxd2 {[%emt 0:02:39]} 19. Nxh4 {[%emt 0:00:41]} Qxh4 {[%emt 0:02:15]} 20. Qxd2 {[%emt 0:00:16]} f5 {[%emt 0:03:04]} 21. f4 {[%emt 0:02:51]} Kh8 {[%emt 0:04:05]} 22. Qf2 {[%emt 0:01:58]} Qh5 {[%emt 0:02:37]} 23. Bc1 {[%emt 0:01:27]} Bd7 {[%emt 0:02:43]} 24. Be3 {[%emt 0:00:53]} Bb6 {[%emt 0:02:20]} 25. Be2 {[%emt 0:02:20]} Qf7 {[%emt 0:02:56]} 26. g4 {[%emt 0:07:21]} Qg6 {[%emt 0:01:44]} 27. Bd3 {[%emt 0:01:36]} Qh6 {[%emt 0:00:52]} 28. gxf5 {[%emt 0:04:58]} Qxh3 {[%emt 0:00:23]} 29. e6 {[%emt 0:00:36]} g6 {[%emt 0:06:11]} 30. exd7 {[%emt 0:01:02]} gxf5 {[%emt 0:00:05]} 31. dxe8=Q+ {[%emt 0:00:27]} Rxe8 {[%emt 0:00:04]} 32. Bf1 {[%emt 0:01:16]} Rg8+ {[%emt 0:03:37]} 33. Bg2 {[%emt 0:00:01]} Bd8 {[%emt 0:00:12]} 34. Kf1 {[%emt 0:00:53]} Qh2 {[%emt 0:00:03]} 35. Bf3 {[%emt 0:01:45]} Qh3+ {[%emt 0:00:37]} 36. Ke2 {[%emt 0:00:26]} 1-0